lending/lending_fUSD_20250408
["ID","MTS","AMOUNT","RATE_DAILY","PERIOD"]
[357547975,1744135876404,-702.1,0.0005452,120]
[357547976,1744135876413,-500.0,0.0005452,120]
[357547977,1744135876423,-594.48,0.0005452,120]
[357547978,1744135876432,-500.0,0.0005452,120]
[357547979,1744135876442,-500.0,0.0005452,120]
[357547980,1744135876452,-177.4065769,0.0005452,120]
[357547981,1744135876461,-1282.28,0.0005452,120]
[357547982,1744135876471,-500.0,0.0005452,120]
[357547983,1744135876480,-850.45,0.0005452,120]
[357547984,1744135876490,-540.94,0.0005452,120]
[357547985,1744135876499,-500.0,0.0005452,120]
[357547986,1744135876509,-763.5,0.0005452,120]
[357547987,1744135876518,-660.48,0.0005452,120]
[357547988,1744135876529,-768.76,0.0005452,120]
[357547989,1744135876539,-500.0,0.0005452,120]
[357547990,1744135876548,-828.56,0.0005452,120]
[357547991,1744135876558,-500.0,0.0005452,120]
[357547992,1744135876567,-500.0,0.0005452,120]
[357547993,1744135876576,-500.0,0.0005452,120]
[357547994,1744135876585,-500.0,0.0005452,120]
[357547995,1744135876594,-959.29,0.0005452,120]
[357547996,1744135876604,-500.0,0.0005452,120]
[357547997,1744135876613,-516.93,0.0005452,120]
[357547998,1744135876625,-500.0,0.0005452,120]
[357547999,1744135876634,-500.0,0.0005452,120]
[357548000,1744135876643,-500.0,0.0005452,120]
[357548001,1744135876652,-500.0,0.0005452,120]
[357548002,1744135876663,-510.65489584,0.0005452,120]
[357548003,1744135876672,-500.0,0.0005452,120]
[357548004,1744135876681,-353.9610016,0.0005452,120]
[357548005,1744135876691,-566.02,0.0005452,120]
[357548006,1744135876700,-500.0,0.0005452,120]
[357548007,1744135876710,-500.0,0.0005452,120]
[357548008,1744135876719,-714.7,0.0005452,120]
[357548009,1744135876729,-620.16,0.0005452,120]
[357548010,1744135876738,-2000.0,0.0005452,30]
[357548011,1744135876747,-683.43,0.0005452,120]
[357548012,1744135876756,-963.69,0.0005452,120]
[357548013,1744135876766,-528.14,0.0005452,120]
[357548014,1744135876777,-500.0,0.0005452,120]
[357548015,1744135876786,-500.0,0.0005452,120]
[357548016,1744135876795,-500.0,0.0005452,120]
[357548017,1744135876805,-500.0,0.0005452,120]
[357548018,1744135876815,-500.0,0.0005452,120]
[357548019,1744135876824,-500.0,0.0005452,120]
[357548020,1744135876834,-524.59,0.0005452,120]
[357548021,1744135876844,-500.0,0.0005452,120]
[357548022,1744135876853,-500.0,0.0005452,120]
[357548023,1744135876862,-500.0,0.0005452,120]
[357548024,1744135876872,-500.0,0.0005452,120]
[357548025,1744135877051,-535.0548447,0.0005452,120]
[357548026,1744135877061,-500.0,0.0005452,120]
[357548027,1744135877071,-1529.63,0.0005452,120]
[357548028,1744135877080,-500.0,0.0005452,120]
[357548029,1744135877090,-524.58,0.0005452,120]
[357548030,1744135877099,-737.15,0.0005452,120]
[357548031,1744135877109,-327.89209804,0.0005452,120]
[357548032,1744135877118,-500.0,0.0005452,120]
[357548033,1744135877127,-500.0,0.0005452,120]
[357548034,1744135877136,-500.0,0.0005452,120]
[357548035,1744135877146,-577.69,0.0005452,120]
[357548036,1744135877156,-500.0,0.0005452,120]
[357548037,1744135877165,-433.02370405,0.0005452,120]
[357548038,1744135877175,-500.0,0.0005452,120]
[357548039,1744135877184,-505.48,0.0005452,120]
[357548040,1744135877194,-500.0,0.0005452,120]
[357548041,1744135877204,-500.0,0.0005452,120]
[357548042,1744135877214,-500.0,0.0005452,120]
[357548043,1744135877223,-594.23,0.0005452,120]
[357548044,1744135877232,-500.0,0.0005452,120]
[357548045,1744135877242,-500.0,0.0005452,120]
[357548046,1744135877251,-797.82,0.0005452,120]
[357548047,1744135877260,-500.0,0.0005452,120]
[357548048,1744135877270,-500.0,0.0005452,120]
[357548049,1744135877281,-500.0,0.0005452,120]
[357548050,1744135877290,-500.0,0.0005452,120]
[357548051,1744135877299,-570.96,0.0005452,120]
[357548052,1744135877309,-500.0,0.0005452,120]
[357548053,1744135877319,-554.84,0.0005452,120]
[357548054,1744135877328,-500.0,0.0005452,120]
[357548055,1744135877338,-500.0,0.0005452,120]
[357548056,1744135877348,-1205.99,0.0005452,120]
[357548057,1744135877359,-737.46,0.0005452,120]
[357548058,1744135877369,-500.0,0.0005452,120]
[357548059,1744135877379,-500.0,0.0005452,120]
[357548060,1744135877389,-508.06,0.0005452,120]
[357548061,1744135877399,-500.0,0.0005452,120]
[357548062,1744135877409,-500.0,0.0005452,120]
[357548063,1744135877418,-830.9,0.0005452,120]
[357548064,1744135877428,-500.0,0.0005452,120]
[357548065,1744135877438,-500.0,0.0005452,120]
[357548066,1744135877447,-500.0,0.0005452,120]
[357548067,1744135877457,-500.0,0.0005452,120]
[357548068,1744135877466,-593.3,0.0005452,120]
[357548069,1744135877475,-500.0,0.0005452,120]
[357548070,1744135877485,-568.34,0.0005452,120]
[357548071,1744135877494,-547.36,0.0005452,120]
[357548072,1744135877503,-500.0,0.0005452,120]
[357548073,1744135877513,-500.0,0.0005452,120]
[357548074,1744135877525,-512.59,0.0005452,120]
[357548075,1744135877534,-500.0,0.0005452,120]
[357548076,1744135877543,-500.0,0.0005452,120]
[357548077,1744135877553,-515.84564793,0.0005452,120]
[357548078,1744135877562,-500.0,0.0005452,120]
[357548079,1744135877572,-500.0,0.0005452,120]
[357548080,1744135877581,-512.10299882,0.0005452,120]
[357548081,1744135877591,-500.0,0.0005452,120]
[357548082,1744135877601,-600.21,0.0005452,120]
[357548083,1744135877614,-1080.18,0.0005452,120]
[357548084,1744135877623,-500.0,0.0005452,120]
[357548085,1744135877633,-500.0,0.0005452,120]
[357548086,1744135877643,-500.0,0.0005452,120]
[357548087,1744135877656,-500.0,0.0005452,120]
[357548088,1744135877666,-500.0,0.0005452,120]
[357548089,1744135877676,-500.0,0.0005452,120]
[357548090,1744135877685,-500.0,0.0005452,120]
[357548091,1744135877696,-500.0,0.0005452,120]
[357548092,1744135877706,-565.33,0.0005452,120]
[357548093,1744135877715,-500.0,0.0005452,120]
[357548094,1744135877725,-1102.49,0.0005452,120]
[357548095,1744135877734,-627.68,0.0005452,120]
[357548096,1744135877745,-500.0,0.0005452,120]
[357548097,1744135877754,-500.0,0.0005452,120]
[357548098,1744135877764,-500.0,0.0005452,120]
[357548099,1744135877775,-500.0,0.0005452,120]
[357548100,1744135877785,-500.0,0.0005452,120]
[357548101,1744135877794,-500.0,0.0005452,120]
[357548102,1744135877803,-500.0,0.0005452,120]
[357548103,1744135877813,-500.0,0.0005452,120]
[357548104,1744135877823,-500.0,0.0005452,120]
[357548105,1744135877832,-651.86,0.0005452,120]
[357548106,1744135877842,-500.0,0.0005452,120]
[357548107,1744135877851,-615.97,0.0005452,3]
[357548108,1744135877860,-1008.75,0.0005452,120]
[357548109,1744135877870,-500.0,0.0005452,120]
[357548110,1744135877879,-500.0,0.0005452,120]
[357548111,1744135877888,-548.5,0.0005452,120]
[357548112,1744135877898,-500.0,0.0005452,120]
[357548113,1744135877908,-500.0,0.0005452,120]
[357548114,1744135877918,-500.0,0.0005452,120]
[357548115,1744135877927,-1865.07,0.0005452,120]
[357548116,1744135877936,-630.49,0.0005452,120]
[357548117,1744135877946,-546.05,0.0005452,120]
[357548118,1744135877955,-500.0,0.0005452,120]
[357548119,1744135877964,-511.68,0.0005452,120]
[357548120,1744135877973,-564.61,0.0005452,120]
[357548121,1744135877983,-500.0,0.0005452,120]
[357548122,1744135877993,-763.62,0.0005452,120]
[357548123,1744135878002,-500.0,0.0005452,120]
[357548124,1744135878011,-1679.19,0.0005452,120]
[357548125,1744135878020,-500.0,0.0005452,120]
[357548126,1744135878031,-500.0,0.0005452,120]
[357548127,1744135878040,-500.0,0.0005452,120]
[357548128,1744135878050,-660.04,0.0005452,120]
[357548129,1744135878060,-500.0,0.0005452,120]
[357548130,1744135878070,-554.22,0.0005452,120]
[357548131,1744135878080,-508.03612268,0.0005452,120]
[357548132,1744135878089,-722.4,0.0005452,120]
[357548133,1744135878099,-1478.16,0.0005452,120]
[357548134,1744135878108,-799.85,0.0005452,120]
[357548135,1744135878119,-780.29,0.0005452,120]
[357548136,1744135878128,-602.6,0.0005452,120]
[357548137,1744135878138,-356.73104146,0.0005452,120]
[357548138,1744135878148,-646.7,0.0005452,120]
[357548139,1744135878158,-500.0,0.0005452,120]
[357548140,1744135878167,-613.26,0.0005452,120]
[357548141,1744135878178,-500.0,0.0005452,120]
[357548142,1744135878188,-500.0,0.0005452,120]
[357548143,1744135878198,-500.0,0.0005452,120]
[357548144,1744135878208,-1227.77,0.0005452,120]
[357548145,1744135878218,-500.0,0.0005452,120]
[357548146,1744135878228,-1161.33,0.0005452,120]
[357548147,1744135878238,-639.27,0.0005452,120]
[357548148,1744135878248,-1012.34,0.0005452,120]
[357548149,1744135878258,-500.0,0.0005452,120]
[357548150,1744135878268,-1476.66,0.0005452,120]
[357548151,1744135878280,-500.0,0.0005452,120]
[357548152,1744135878290,-518.9,0.0005452,120]
[357548153,1744135878301,-500.0,0.0005452,120]
[357548154,1744135878311,-714.16,0.0005452,120]
[357548155,1744135878321,-500.0,0.0005452,120]
[357548156,1744135878331,-500.0,0.0005452,120]
[357548157,1744135878341,-500.0,0.0005452,120]
[357548158,1744135878351,-500.0,0.0005452,120]
[357548159,1744135878361,-707.18,0.0005452,120]
[357548160,1744135878371,-521.99,0.0005452,120]
[357548161,1744135878380,-802.54,0.0005452,120]
[357548162,1744135878390,-500.0,0.0005452,120]
[357548163,1744135878400,-599.6,0.0005452,120]
[357548164,1744135878410,-500.0,0.0005452,120]
[357548165,1744135878420,-704.21,0.0005452,120]
[357548166,1744135878431,-500.0,0.0005452,120]
[357548167,1744135878441,-500.0,0.0005452,120]
[357548168,1744135878450,-500.0,0.0005452,120]
[357548169,1744135878461,-641.96,0.0005452,120]
[357548170,1744135878471,-938.36,0.0005452,120]
[357548171,1744135878481,-836.32,0.0005452,120]
[357548172,1744135878492,-204.8084884,0.0005452,120]
[357548173,1744135878501,-500.0,0.0005452,120]
[357548174,1744135878511,-500.0,0.0005452,120]
[357548175,1744135878521,-500.0,0.0005452,120]
[357548176,1744135878533,-500.0,0.0005452,120]
[357548177,1744135878543,-500.0,0.0005452,120]
[357548178,1744135878554,-1001.73,0.0005452,120]
[357548179,1744135878564,-1758.82,0.0005452,120]
[357548180,1744135878575,-500.0,0.0005452,120]
[357548181,1744135878584,-888.6,0.0005452,120]
[357548182,1744135878594,-500.0,0.0005452,120]
[357548183,1744135878605,-1712.57,0.0005452,120]
[357548184,1744135878615,-669.22,0.0005452,120]
[357548185,1744135878629,-597.59,0.0005452,120]
[357548186,1744135878639,-500.0,0.0005452,120]
[357548187,1744135878651,-500.0,0.0005452,120]
[357548188,1744135878660,-500.0,0.0005452,120]
[357548189,1744135878670,-808.98,0.0005452,120]
[357548190,1744135878680,-500.0,0.0005452,120]
[357548191,1744135878690,-878.06,0.0005452,120]
[357548192,1744135878702,-539.63,0.0005452,120]
[357548193,1744135878712,-500.0,0.0005452,120]
[357548194,1744135878721,-500.0,0.0005452,120]
[357548195,1744135878731,-500.0,0.0005452,120]
[357548196,1744135878742,-500.0,0.0005452,120]
[357548197,1744135878751,-500.0,0.0005452,120]
[357548198,1744135878761,-500.0,0.0005452,120]
[357548199,1744135878771,-500.0,0.0005452,120]
[357548200,1744135878782,-990.1,0.0005452,120]
[357548201,1744135878791,-550.93,0.0005452,120]
[357548202,1744135878801,-1032.36,0.0005452,120]
[357548203,1744135878810,-1056.72,0.0005452,120]
[357548204,1744135878820,-1303.1,0.0005452,120]
[357548205,1744135878830,-500.0,0.0005452,120]
[357548206,1744135878840,-545.23,0.0005452,120]
[357548207,1744135878850,-500.0,0.0005452,120]
[357548208,1744135878859,-500.0,0.0005452,120]
[357548209,1744135878869,-500.0,0.0005452,120]
[357548210,1744135878879,-951.16,0.0005452,120]
[357548211,1744135878889,-500.0,0.0005452,120]
[357548212,1744135878899,-947.72,0.0005452,120]
[357548213,1744135878908,-808.53,0.0005452,120]
[357548214,1744135878918,-845.46,0.0005452,120]
[357548215,1744135878928,-500.0,0.0005452,120]
[357548216,1744135878938,-500.0,0.0005452,120]
[357548217,1744135878947,-500.0,0.0005452,120]
[357548218,1744135878957,-500.0,0.0005452,120]
[357548219,1744135878966,-833.03,0.0005452,120]
[357548220,1744135878976,-2431.15,0.0005452,120]
[357548221,1744135878986,-591.95751443,0.0005452,120]
[357548222,1744135878995,-500.0,0.0005452,120]
[357548223,1744135879005,-1568.64,0.0005452,120]
[357548224,1744135879014,-975.29,0.0005452,120]
[357548225,1744135879025,-806.29,0.0005452,120]
[357548226,1744135879034,-533.09652589,0.0005452,120]
[357548227,1744135879044,-500.0,0.0005452,120]
[357548228,1744135879054,-500.0,0.0005452,120]
[357548229,1744135879064,-500.0,0.0005452,120]
[357548230,1744135879073,-929.27,0.0005452,120]
[357548231,1744135879083,-1263.92,0.0005452,120]
[357548232,1744135879092,-500.0,0.0005452,120]
[357548233,1744135879102,-6744.61,0.0005452,2]
[357548234,1744135879111,-1745.31,0.0005452,120]
[357548235,1744135879121,-500.0,0.0005452,120]
[357548236,1744135879130,-784.78,0.0005452,120]
[357548237,1744135879140,-844.34,0.0005452,120]
[357548238,1744135879149,-1297.19,0.0005452,120]
[357548239,1744135879159,-671.69,0.0005452,120]
[357548240,1744135879169,-500.0,0.0005452,120]
[357548241,1744135879179,-736.0,0.0005452,120]
[357548242,1744135879188,-500.0,0.0005452,120]
[357548243,1744135879198,-500.0,0.0005452,120]
[357548244,1744135879208,-500.0,0.0005452,120]
[357548245,1744135879217,-596.17,0.0005452,120]
[357548246,1744135879227,-1049.21,0.0005452,120]
[357548247,1744135879237,-878.89,0.0005452,120]
[357548248,1744135879247,-500.0,0.0005452,120]
[357548249,1744135879256,-520.04,0.0005452,120]
[357548250,1744135879266,-581.28,0.0005452,120]
[357548251,1744135879277,-1004.09,0.0005452,120]
[357548252,1744135879287,-500.0,0.0005452,120]
[357548253,1744135879297,-500.0,0.0005452,120]
[357548254,1744135879306,-500.0,0.0005452,120]
[357548255,1744135879316,-1139.43,0.0005452,120]
[357548256,1744135879326,-769.0,0.0005452,120]
[357548257,1744135879336,-500.0,0.0005452,120]
[357548258,1744135879346,-305.69656033,0.0005452,120]
[357548259,1744135879356,-500.0,0.0005452,120]
[357548260,1744135879366,-691.29,0.0005452,120]
[357548261,1744135879375,-2188.68,0.0005452,120]
[357548262,1744135879384,-500.0,0.0005452,120]
[357548263,1744135879394,-500.0,0.0005452,120]
[357548264,1744135879404,-980.44,0.0005452,120]
[357548265,1744135879413,-547.15,0.0005452,120]
[357548266,1744135879591,-591.63,0.0005452,120]
[357548267,1744135879602,-500.0,0.0005452,120]
[357548268,1744135879616,-707.17,0.0005452,120]
[357548269,1744135879626,-1356.13,0.0005452,120]
[357548270,1744135879636,-621.25,0.0005452,120]
[357548271,1744135879645,-611.70184609,0.0005452,120]
[357548272,1744135879657,-500.0,0.0005452,120]
[357548273,1744135879666,-584.31146954,0.0005452,120]
[357548274,1744135879676,-1061.81,0.0005452,120]
[357548275,1744135879685,-915.65,0.0005452,120]
[357548276,1744135879697,-671.05,0.0005452,120]
[357548277,1744135879706,-991.48,0.0005452,120]
[357548278,1744135879715,-500.0,0.0005452,120]
[357548279,1744135879724,-500.0,0.0005452,120]
[357548280,1744135879734,-771.41,0.0005452,120]
[357548281,1744135879743,-735.03,0.0005452,120]
[357548282,1744135879752,-500.0,0.0005452,120]
[357548283,1744135879762,-1539.5,0.0005452,120]
[357548284,1744135879771,-500.0,0.0005452,120]
[357548285,1744135879781,-793.73,0.0005452,120]
[357548286,1744135879790,-2030.76,0.0005452,120]
[357548287,1744135879800,-500.0,0.0005452,120]
[357548288,1744135879810,-645.49,0.0005452,120]
[357548289,1744135879819,-500.0,0.0005452,120]
[357548290,1744135879828,-543.59,0.0005452,120]
[357548291,1744135879838,-1107.48,0.0005452,120]
[357548292,1744135879847,-500.0,0.0005452,120]
[357548293,1744135879857,-500.0,0.0005452,120]
[357548294,1744135879866,-1122.05,0.0005452,120]
[357548295,1744135879875,-500.0,0.0005452,120]
[357548296,1744135879885,-500.0,0.0005452,8]
[357548297,1744135879894,-918.42,0.0005452,120]
[357548298,1744135879904,-1784.68,0.0005452,120]
[357548299,1744135879914,-500.0,0.0005452,120]
[357548300,1744135879925,-665.51,0.0005452,120]
[357548301,1744135879934,-500.0,0.0005452,120]
[357548302,1744135879944,-578.6,0.0005452,120]
[357548303,1744135879953,-841.6,0.0005452,120]
[357548304,1744135879963,-500.0,0.0005452,120]
[357548305,1744135879972,-1052.26,0.0005452,120]
[357548306,1744135879982,-528.16,0.0005452,120]
[357548307,1744135879992,-768.18,0.0005452,120]
[357548308,1744135880001,-1672.07,0.0005452,118]
[357548309,1744135880011,-500.0,0.0005452,120]
[357548310,1744135880021,-1296.01,0.0005452,120]
[357548311,1744135880032,-1146.51,0.0005452,120]
[357548312,1744135880043,-500.0,0.0005452,120]
[357548313,1744135880052,-541.49728581,0.0005452,120]
[357548314,1744135880062,-1000.0,0.0005452,120]
[357548315,1744135880071,-500.0,0.0005452,120]
[357548316,1744135880080,-500.0,0.0005452,120]
[357548317,1744135880090,-500.0,0.0005452,120]
[357548318,1744135880099,-803.86,0.0005452,120]
[357548319,1744135880109,-2828.98,0.0005452,120]
[357548320,1744135880118,-500.0,0.0005452,120]
[357548321,1744135880128,-825.98,0.0005452,120]
[357548322,1744135880137,-513.55,0.0005452,120]
[357548323,1744135880147,-500.0,0.0005452,120]
[357548324,1744135880156,-1752.77,0.0005452,120]
[357548325,1744135880166,-500.0,0.0005452,120]
[357548326,1744135880175,-1469.03,0.0005452,120]
[357548327,1744135880184,-674.74,0.0005452,120]
[357548328,1744135880193,-734.29,0.0005452,120]
[357548329,1744135880203,-895.79,0.0005452,120]
[357548330,1744135880212,-931.13,0.0005452,120]
[357548331,1744135880221,-500.0,0.0005452,120]
[357548332,1744135880231,-548.95,0.0005452,120]
[357548333,1744135880240,-500.0,0.0005452,120]
[357548334,1744135880250,-500.0,0.0005452,120]
[357548335,1744135880259,-500.0,0.0005452,120]
[357548336,1744135880268,-500.0,0.0005452,120]
[357548337,1744135880279,-943.92,0.0005452,120]
[357548338,1744135880289,-500.0,0.0005452,120]
[357548339,1744135880298,-2817.37,0.0005452,120]
[357548340,1744135880308,-643.01,0.0005452,120]
[357548341,1744135880317,-500.0,0.0005452,60]
[357548342,1744135880327,-500.0,0.0005452,120]
[357548343,1744135880336,-2095.08,0.0005452,120]
[357548344,1744135880346,-551.51744552,0.0005452,120]
[357548345,1744135880356,-535.91,0.0005452,120]
[357548346,1744135880365,-589.7065979,0.0005452,120]
[357548347,1744135880375,-500.0,0.0005452,120]
[357548348,1744135880384,-500.0,0.0005452,120]
[357548349,1744135880394,-500.0,0.0005452,120]
[357548350,1744135880403,-1220.84,0.0005452,2]
[357548351,1744135880413,-500.0,0.0005452,120]
[357548352,1744135880422,-500.0,0.0005452,120]
[357548353,1744135880432,-2064.77,0.0005452,120]
[357548354,1744135880442,-500.0,0.0005452,120]
[357548355,1744135880451,-500.0,0.0005452,120]
[357548356,1744135880461,-500.0,0.0005452,120]
[357548357,1744135880471,-1736.05,0.0005452,120]
[357548358,1744135880481,-777.99,0.0005452,120]
[357548359,1744135880491,-500.0,0.0005452,120]
[357548360,1744135880500,-2563.65,0.0005452,120]
[357548361,1744135880510,-500.0,0.0005452,120]
[357548362,1744135880519,-1027.58,0.0005452,120]
[357548363,1744135880530,-751.14,0.0005452,120]
[357548364,1744135880539,-1287.88,0.0005452,120]
[357548365,1744135880549,-646.32,0.0005452,120]
[357548366,1744135880559,-500.0,0.0005452,120]
[357548367,1744135880568,-500.0,0.0005452,120]
[357548368,1744135880578,-509.41,0.0005452,120]
[357548369,1744135880587,-500.0,0.0005452,120]
[357548370,1744135880597,-500.0,0.0005452,120]
[357548371,1744135880607,-575.39,0.0005452,120]
[357548372,1744135880617,-2129.03,0.0005452,120]
[357548373,1744135880629,-1105.86,0.0005452,120]
[357548374,1744135880640,-528.61163905,0.0005452,120]
[357548375,1744135880650,-500.0,0.0005452,120]
[357548376,1744135880662,-1398.27,0.0005452,120]
[357548377,1744135880682,-500.0,0.0005452,120]
[357548378,1744135880701,-500.0,0.0005452,120]
[357548379,1744135880721,-500.0,0.0005452,120]
[357548380,1744135880740,-500.0,0.0005452,120]
[357548381,1744135880757,-813.0,0.0005452,120]
[357548382,1744135880776,-500.0,0.0005452,120]
[357548383,1744135880797,-500.0,0.0005452,120]
[357548384,1744135880816,-1231.16,0.0005452,120]
[357548385,1744135880835,-1852.62,0.0005452,120]
[357548386,1744135880855,-2129.78,0.0005452,120]
[357548387,1744135880871,-500.0,0.0005452,120]
[357548388,1744135880890,-524.80619637,0.0005452,120]
[357548389,1744135880904,-500.0,0.0005452,120]
[357548390,1744135880922,-735.03,0.0005452,120]
[357548391,1744135880940,-817.54,0.0005452,120]
[357548392,1744135880957,-500.0,0.0005452,120]
[357548393,1744135880974,-500.0,0.0005452,120]
[357548394,1744135880992,-500.0,0.0005452,120]
[357548395,1744135881008,-538.82,0.0005452,120]
[357548396,1744135881026,-500.0,0.0005452,120]
[357548397,1744135881045,-794.86,0.0005452,120]
[357548398,1744135881061,-500.0,0.0005452,120]
[357548399,1744135881077,-589.43,0.0005452,120]
[357548400,1744135881093,-500.0,0.0005452,120]
[357548401,1744135881110,-500.0,0.0005452,120]
[357548402,1744135881126,-1762.5,0.0005452,120]
[357548403,1744135881142,-703.81,0.0005452,120]
[357548404,1744135881158,-500.0,0.0005452,120]
[357548405,1744135881173,-1383.32,0.0005452,120]
[357548406,1744135881189,-500.0,0.0005452,2]
[357548407,1744135881204,-500.0,0.0005452,120]
[357548408,1744135881220,-823.089422,0.00054691,15]
[357548409,1744135881235,-1460.93,0.00054753,120]
[357548410,1744135881251,-884.11,0.00054753,120]
[357548411,1744135881267,-240.125855,0.00054762,7]
[357548412,1744135881284,-500.0,0.00054763,120]
[357548413,1744135881299,-1000.0,0.00054767,120]
[357548414,1744135881314,-1000.0,0.00054767,120]
[357548415,1744135881329,-1000.0,0.00054767,120]
[357548416,1744135881344,-1000.0,0.00054767,120]
[357548417,1744135881361,-453.41359907,0.0005477,7]
[357548418,1744135881376,-1153.74212474,0.00054772,120]
[357548419,1744135881391,-1153.74212474,0.00054772,120]
[357548420,1744135881406,-1153.74212474,0.00054772,120]
[357548421,1744135881422,-1153.74212474,0.00054772,120]
[357548422,1744135881436,-1153.74212474,0.00054772,120]
[357548423,1744135881452,-1153.74212474,0.00054772,120]
[357548424,1744135881468,-1153.74212474,0.00054772,120]
[357548425,1744135881484,-1153.74212474,0.00054772,120]
[357548426,1744135881499,-1153.74212474,0.00054772,120]
[357548427,1744135881515,-1153.74212474,0.00054772,120]
[357548428,1744135881532,-522.2,0.00054773,120]
[357548429,1744135881547,-500.0,0.00054783,120]
[357548430,1744135881562,-698.53,0.00054783,120]
[357548431,1744135881578,-698.53,0.00054783,120]
[357548432,1744135881594,-150.0,0.00054785,120]
[357548433,1744135881611,-500.0,0.00054792,2]
[357548434,1744135881627,-1603.99,0.00054792,120]
[357548435,1744135881641,-150.0,0.00054793,2]
[357548436,1744135881656,-500.0,0.00054793,120]
[357548437,1744135881677,-500.0,0.00054793,120]
[357548438,1744135881693,-500.0,0.00054793,120]
[357548439,1744135881708,-500.0,0.00054793,120]
[357548440,1744135881723,-150.0,0.00054793,120]
[357548441,1744135881738,-522.2,0.00054793,120]
[357548442,1744135881753,-522.2,0.00054793,120]
[357548443,1744135881767,-522.2,0.00054793,120]
[357548444,1744135881782,-522.2,0.00054793,120]
[357548445,1744135881797,-698.53,0.00054793,120]
[357548446,1744135881811,-698.53,0.00054793,120]
[357548447,1744135881827,-698.53,0.00054793,120]
[357548448,1744135881843,-500.0,0.00054793,2]
[357548449,1744135881858,-500.0,0.00054793,2]
[357548450,1744135881872,-1603.99,0.00054793,120]
[357548451,1744135881888,-1603.99,0.00054793,120]
[357548452,1744135881904,-500.0,0.00054793,120]
[357548453,1744135881920,-500.0,0.00054793,120]
[357548454,1744135881936,-159.29,0.00054794,120]
[357548455,1744135881951,-500.0,0.00054794,120]
[357548456,1744135881966,-500.0,0.00054794,16]
[357548457,1744135881981,-500.0,0.00054794,120]
[357548458,1744135881996,-310.87463177,0.00054794,120]
[357548459,1744135882011,-500.0,0.00054794,120]
[357548460,1744135882027,-500.0,0.00054794,120]
[357548461,1744135882043,-500.0,0.00054794,120]
[357548462,1744135882058,-1048.3642403,0.00054794,120]
[357548463,1744135882075,-1851.47,0.00054794,120]
[357548464,1744135882090,-1851.47,0.00054794,120]
[357548465,1744135882107,-1851.47,0.00054794,120]
[357548466,1744135882123,-1851.47,0.00054794,120]
[357548467,1744135882137,-2753.64,0.00054794,100]
[357548468,1744135882153,-2753.64,0.00054794,100]
[357548469,1744135882169,-2753.64,0.00054794,100]
[357548470,1744135882186,-2753.64,0.00054794,100]
[357548471,1744135882203,-500.0,0.00054794,120]
[357548472,1744135882217,-500.0,0.00054794,120]
[357548473,1744135882232,-500.0,0.00054794,120]
[357548474,1744135882248,-621.67545783,0.00054794,120]